fUSD/lending_fUSD_20240517
["ID","MTS","AMOUNT","RATE_DAILY","PERIOD"]
[327270920,1715953842099,-217.45,0.00012533,2]
[327270923,1715953842109,-342.56709146,0.00012564,2]
[327270925,1715953842119,-6777.26120681,0.00012564,2]
[327270927,1715953842128,-489.54298967,0.00012569,2]
[327270929,1715953842138,-500.0,0.00012579,2]
[327270931,1715953842147,-500.0,0.00012579,2]
[327270933,1715953842157,-500.0,0.00012579,2]
[327270935,1715953842167,-500.0,0.00012579,2]
[327270937,1715953842176,-500.0,0.00012579,2]
[327270939,1715953842186,-528.55,0.00012579,2]
[327270941,1715953842198,-500.0,0.00012579,2]
[327270943,1715953842208,-3775.57,0.00012579,2]
[327270945,1715953842218,-500.0,0.00012579,2]
[327270947,1715953842228,-695.72,0.00012579,2]
[327270949,1715953842238,-904.36,0.00012579,2]
[327270951,1715953842247,-576.86,0.00012579,2]
[327270953,1715953842257,-500.0,0.00012579,2]
[327270955,1715953842268,-500.0,0.00012579,2]
[327270957,1715953842278,-674.19,0.00012579,2]
[327270959,1715953842287,-152.69947,0.00012579,2]
[327270961,1715953842296,-152.699461,0.00012579,2]
[327270963,1715953842306,-1373.475077,0.00012599,2]
[327270965,1715953842316,-200.0,0.000126,4]
[327270967,1715953842326,-153.12016,0.00012601,2]
[327270969,1715953842336,-393.3972977,0.00012601,2]
[327270971,1715953842345,-151.0,0.00012601,2]
[327270973,1715953842355,-367.301771,0.00012601,2]
[327270974,1715953842365,-367.301771,0.00012601,2]
[327270976,1715953842374,-500.0,0.00012601,2]
[327270978,1715953842383,-151.0,0.00012601,2]
[327270980,1715953842392,-252.707903,0.00012601,2]
[327270982,1715953842402,-252.707903,0.00012601,2]
[327270984,1715953842411,-151.0,0.00012601,2]
[327270986,1715953842421,-500.0,0.00012601,2]
[327270988,1715953842430,-151.0,0.00012601,2]
[327270990,1715953842440,-151.0,0.00012601,2]
[327270992,1715953842450,-151.0,0.00012601,2]
[327270994,1715953842460,-151.0,0.00012601,2]
[327270996,1715953842469,-500.0,0.00012601,2]
[327270998,1715953842479,-952.09,0.00012601,2]
[327271000,1715953842488,-500.0,0.00012601,2]
[327271002,1715953842498,-705.05,0.00012601,2]
[327271004,1715953842507,-682.0,0.0001261,2]
[327271006,1715953842518,-2012.18,0.0001261,2]
[327271008,1715953842527,-500.0,0.0001261,2]
[327271010,1715953842537,-500.0,0.0001261,2]
[327271012,1715953842546,-500.0,0.0001261,2]
[327271014,1715953842555,-2743.76,0.0001261,2]
[327271016,1715953842564,-1232.58,0.0001261,2]
[327271018,1715953842574,-500.0,0.0001261,2]
[327271020,1715953842583,-500.0,0.0001261,2]
[327271022,1715953842593,-858.507705,0.00012623,2]
[327271024,1715953842603,-5173.76119,0.00012623,2]
[327271026,1715953842616,-2183.639369,0.00012623,2]
[327271028,1715953842625,-500.0,0.00012655,2]
[327271030,1715953842635,-771.79,0.00012655,2]
[327271032,1715953842647,-500.0,0.00012655,2]
[327271034,1715953842657,-500.0,0.00012655,2]
[327271036,1715953842668,-1000.0,0.00012665,2]
[327271038,1715953842677,-489.54298967,0.0001267,2]
[327271040,1715953842688,-579.29536458,0.00012675,2]
[327271042,1715953842699,-500.0,0.00012675,2]
[327271044,1715953842709,-500.0,0.00012675,2]
[327271046,1715953842719,-500.0,0.00012675,2]
[327271048,1715953842728,-500.0,0.00012675,2]
[327271050,1715953842738,-500.0,0.00012675,2]
[327271052,1715953842747,-304.94,0.00012675,2]
[327271053,1715953842758,-500.0,0.00012675,2]
[327271056,1715953842768,-528.55,0.00012675,2]
[327271058,1715953842777,-500.0,0.00012675,2]
[327271059,1715953842787,-3775.57,0.00012675,2]
[327271061,1715953842796,-500.0,0.00012675,2]
[327271063,1715953842806,-695.72,0.00012675,2]
[327271065,1715953842815,-904.36,0.00012675,2]
[327271068,1715953842826,-576.86,0.00012675,2]
[327271071,1715953842836,-952.09,0.00012675,2]
[327271074,1715953842846,-550.13847237,0.00012675,2]
[327271075,1715953842855,-500.0,0.00012675,2]
[327271077,1715953842865,-500.0,0.00012675,2]
[327271079,1715953842875,-674.19,0.00012675,2]
[327271082,1715953842885,-210.794335,0.00012676,2]
[327271083,1715953842895,-367.301771,0.00012676,2]
[327271085,1715953842905,-367.301771,0.00012676,2]
[327271087,1715953842914,-151.0,0.00012676,2]
[327271089,1715953842924,-252.707903,0.00012676,2]
[327271091,1715953842934,-252.707903,0.00012676,2]
[327271093,1715953842943,-683.56,0.00012678,2]
[327271096,1715953842953,-783.32,0.00012678,2]
[327271098,1715953842962,-500.0,0.00012678,2]
[327271101,1715953842972,-500.0,0.00012678,2]
[327271104,1715953842983,-214.87,0.00012678,2]
[327271107,1715953842993,-500.0,0.00012678,2]
[327271110,1715953843002,-500.0,0.00012678,2]
[327271113,1715953843012,-500.0,0.00012678,2]
[327271117,1715953843022,-500.0,0.00012678,2]
[327271118,1715953843031,-500.0,0.00012678,2]
[327271121,1715953843041,-500.0,0.00012678,2]
[327271124,1715953843051,-500.0,0.00012678,2]
[327271127,1715953843060,-500.0,0.00012678,2]
[327271129,1715953843070,-500.0,0.00012678,2]
[327271132,1715953843080,-500.0,0.00012678,2]
[327271135,1715953843091,-500.0,0.00012678,2]
[327271138,1715953843101,-500.0,0.00012678,2]
[327271141,1715953843111,-608.27,0.00012678,2]
[327271143,1715953843120,-941.53,0.00012678,2]
[327271145,1715953843130,-608.27,0.00012678,2]
[327271147,1715953843140,-608.27,0.00012678,2]
[327271149,1715953843150,-1014.56,0.00012678,2]
[327271151,1715953843159,-1014.56,0.00012678,2]
[327271153,1715953843169,-1014.56,0.00012678,2]
[327271155,1715953843179,-298.31,0.00012678,2]
[327271157,1715953843188,-2128.12,0.00012678,2]
[327271159,1715953843198,-2128.12,0.00012678,2]
[327271161,1715953843208,-2128.12,0.00012678,2]
[327271163,1715953843217,-672.8,0.00012678,2]
[327271165,1715953843227,-672.8,0.00012678,2]
[327271167,1715953843237,-672.8,0.00012678,2]
[327271169,1715953843246,-500.0,0.00012678,2]
[327271171,1715953843256,-500.0,0.00012678,2]
[327271173,1715953843266,-500.0,0.00012678,2]
[327271175,1715953843276,-1799.73,0.00012678,2]
[327271177,1715953843286,-1799.73,0.00012678,2]
[327271179,1715953843296,-1799.73,0.00012678,2]
[327271181,1715953843306,-500.0,0.00012678,2]
[327271183,1715953843315,-500.0,0.00012678,2]
[327271185,1715953843326,-500.0,0.00012678,2]
[327271187,1715953843337,-2393.99,0.00012678,2]
[327271190,1715953843347,-925.6,0.00012678,2]
[327271192,1715953843356,-925.6,0.00012678,2]
[327271194,1715953843366,-925.6,0.00012678,2]
[327271196,1715953843376,-4070.69,0.00012678,2]
[327271198,1715953843386,-4070.69,0.00012678,2]
[327271199,1715953843395,-4070.69,0.00012678,2]
[327271202,1715953843405,-151.0,0.00012679,2]
[327271204,1715953843415,-268.649522,0.00012679,2]
[327271205,1715953843424,-165.704999,0.00012679,2]
[327271208,1715953843434,-268.649522,0.00012679,2]
[327271210,1715953843444,-151.0,0.00012679,2]
[327271212,1715953843453,-444.45474903,0.00012679,2]
[327271214,1715953843462,-151.0,0.00012679,2]
[327271215,1715953843472,-182.840626,0.00012679,2]
[327271218,1715953843482,-500.0,0.00012679,2]
[327271220,1715953843492,-500.0,0.00012679,2]
[327271222,1715953843501,-500.0,0.00012679,2]
[327271224,1715953843511,-500.0,0.00012679,2]
[327271226,1715953843521,-500.0,0.00012679,2]
[327271228,1715953843531,-263.39874254,0.00012679,2]
[327271230,1715953843541,-500.0,0.00012679,2]
[327271232,1715953843550,-500.0,0.00012679,2]
[327271234,1715953843560,-500.0,0.00012679,2]
[327271236,1715953843570,-500.0,0.00012679,2]
[327271238,1715953843580,-500.0,0.00012679,2]
[327271240,1715953843591,-500.0,0.00012679,2]
[327271242,1715953843601,-500.0,0.00012679,2]
[327271264,1715953843818,-500.0,0.00012679,2]
[327271266,1715953843828,-500.0,0.00012679,2]
[327271268,1715953843838,-500.0,0.00012679,2]
[327271270,1715953843848,-444.70711918,0.00012679,2]
[327271272,1715953843858,-2012.18,0.00012679,2]
[327271275,1715953843868,-500.0,0.00012679,2]
[327271277,1715953843878,-2012.18,0.00012679,2]
[327271279,1715953843887,-500.0,0.00012679,2]
[327271281,1715953843897,-2012.18,0.00012679,2]
[327271283,1715953843907,-500.0,0.00012679,2]
[327271285,1715953843916,-2012.18,0.00012679,2]
[327271287,1715953843926,-500.0,0.00012679,2]
[327271289,1715953843935,-2012.18,0.00012679,2]
[327271291,1715953843946,-2012.18,0.00012679,2]
[327271293,1715953843955,-528.55,0.00012679,2]
[327271295,1715953843965,-528.55,0.00012679,2]
[327271297,1715953843975,-528.55,0.00012679,2]
[327271299,1715953843984,-528.55,0.00012679,2]
[327271301,1715953843993,-500.0,0.00012679,2]
[327271303,1715953844003,-614.20207758,0.00012679,2]
[327271305,1715953844013,-500.0,0.00012679,2]
[327271307,1715953844023,-500.0,0.00012679,2]
[327271309,1715953844032,-500.0,0.00012679,2]
[327271311,1715953844041,-500.0,0.00012679,2]
[327271313,1715953844054,-500.0,0.00012679,2]
[327271315,1715953844063,-500.0,0.00012679,2]
[327271317,1715953844073,-3775.57,0.00012679,2]
[327271319,1715953844084,-3775.57,0.00012679,2]
[327271322,1715953844094,-3775.57,0.00012679,2]
[327271324,1715953844104,-3775.57,0.00012679,2]
[327271326,1715953844113,-178.32,0.00012679,2]
[327271328,1715953844124,-695.72,0.00012679,2]
[327271347,1715953844291,-695.72,0.00012679,2]
[327271349,1715953844302,-695.72,0.00012679,2]
[327271351,1715953844311,-695.72,0.00012679,2]
[327271353,1715953844321,-904.36,0.00012679,2]
[327271355,1715953844331,-904.36,0.00012679,2]
[327271357,1715953844343,-500.0,0.00012679,2]
[327271359,1715953844353,-500.0,0.00012679,2]
[327271361,1715953844362,-904.36,0.00012679,2]
[327271363,1715953844372,-500.0,0.00012679,2]
[327271365,1715953844382,-904.36,0.00012679,2]
[327271368,1715953844392,-500.0,0.00012679,2]
[327271370,1715953844402,-595.89,0.00012679,2]
[327271372,1715953844411,-683.56,0.00012679,2]
[327271373,1715953844421,-683.56,0.00012679,2]
[327271375,1715953844430,-683.56,0.00012679,2]
[327271377,1715953844441,-783.32,0.00012679,2]
[327271380,1715953844450,-783.32,0.00012679,2]
[327271382,1715953844460,-783.32,0.00012679,2]
[327271384,1715953844470,-500.0,0.00012679,2]
[327271386,1715953844479,-500.0,0.00012679,2]
[327271388,1715953844488,-500.0,0.00012679,2]
[327271390,1715953844498,-500.0,0.00012679,2]
[327271392,1715953844508,-500.0,0.00012679,2]
[327271394,1715953844518,-500.0,0.00012679,2]
[327271396,1715953844528,-500.0,0.00012679,2]
[327271398,1715953844538,-500.0,0.00012679,2]
[327271400,1715953844547,-500.0,0.00012679,2]
[327271402,1715953844558,-576.86,0.00012679,2]
[327271404,1715953844567,-952.09,0.00012679,2]
[327271406,1715953844577,-576.86,0.00012679,2]
[327271408,1715953844588,-952.09,0.00012679,2]
[327271410,1715953844598,-576.86,0.00012679,2]
[327271412,1715953844609,-952.09,0.00012679,2]
[327271414,1715953844621,-576.86,0.00012679,2]
[327271416,1715953844631,-952.09,0.00012679,2]
[327271418,1715953844641,-952.09,0.00012679,2]
[327271420,1715953844652,-952.09,0.00012679,2]
[327271422,1715953844661,-500.0,0.00012679,2]
[327271424,1715953844671,-500.0,0.00012679,2]
[327271426,1715953844681,-516.31,0.00012679,2]
[327271428,1715953844692,-500.0,0.00012679,2]
[327271430,1715953844702,-500.0,0.00012679,2]
[327271432,1715953844712,-500.0,0.00012679,2]
[327271433,1715953844722,-500.0,0.00012679,2]
[327271434,1715953844731,-319.31237603,0.00012679,2]
[327271435,1715953844741,-269.51,0.00012679,2]
[327271436,1715953844750,-941.53,0.00012679,2]
[327271437,1715953844759,-608.27,0.00012679,2]
[327271438,1715953844768,-941.53,0.00012679,2]
[327271439,1715953844778,-941.53,0.00012679,2]
[327271440,1715953844788,-608.27,0.00012679,2]
[327271441,1715953844797,-608.27,0.00012679,2]
[327271442,1715953844806,-2743.76,0.00012679,2]
[327271443,1715953844815,-1014.56,0.00012679,2]
[327271444,1715953844824,-2743.76,0.00012679,2]
[327271445,1715953844835,-1014.56,0.00012679,2]
[327271447,1715953844845,-2743.76,0.00012679,2]
[327271449,1715953844855,-1014.56,0.00012679,2]
[327271451,1715953844864,-2743.76,0.00012679,2]
[327271453,1715953844874,-2743.76,0.00012679,2]
[327271455,1715953844883,-2743.76,0.00012679,2]
[327271457,1715953844893,-500.0,0.00012679,2]
[327271459,1715953844903,-500.0,0.00012679,2]
[327271461,1715953844913,-500.0,0.00012679,2]
[327271463,1715953844923,-344.06339346,0.00012679,2]
[327271465,1715953844932,-2128.12,0.00012679,2]
[327271467,1715953844943,-2128.12,0.00012679,2]
[327271469,1715953844953,-2128.12,0.00012679,2]
[327271471,1715953844962,-672.8,0.00012679,2]
[327271473,1715953844972,-672.8,0.00012679,2]
[327271475,1715953844982,-672.8,0.00012679,2]
[327271477,1715953844992,-500.0,0.00012679,2]
[327271479,1715953845002,-1232.58,0.00012679,2]
[327271481,1715953845012,-500.0,0.00012679,2]
[327271483,1715953845022,-1232.58,0.00012679,2]
[327271486,1715953845032,-500.0,0.00012679,2]
[327271488,1715953845042,-500.0,0.00012679,2]
[327271490,1715953845052,-1232.58,0.00012679,2]
[327271492,1715953845061,-500.0,0.00012679,2]
[327271494,1715953845071,-1232.58,0.00012679,2]
[327271496,1715953845081,-500.0,0.00012679,2]
[327271498,1715953845092,-1232.58,0.00012679,2]
[327271500,1715953845102,-1799.73,0.00012679,2]
[327271502,1715953845112,-500.0,0.00012679,2]
[327271504,1715953845121,-1232.58,0.00012679,2]
[327271506,1715953845131,-1799.73,0.00012679,2]
[327271508,1715953845142,-1799.73,0.00012679,2]
[327271510,1715953845151,-500.0,0.00012679,2]
[327271512,1715953845161,-286.88333466,0.00012679,2]
[327271514,1715953845170,-674.19,0.00012679,2]
[327271516,1715953845180,-674.19,0.00012679,2]
[327271518,1715953845190,-674.19,0.00012679,2]
[327271520,1715953845199,-674.19,0.00012679,2]
[327271522,1715953845209,-412.50189589,0.00012679,2]
[327271524,1715953845219,-2393.99,0.00012679,2]
[327271526,1715953845228,-2393.99,0.00012679,2]
[327271528,1715953845238,-2393.99,0.00012679,2]
[327271530,1715953845247,-500.0,0.00012679,2]
[327271532,1715953845257,-500.0,0.00012679,2]
[327271534,1715953845267,-500.0,0.00012679,2]
[327271536,1715953845276,-500.0,0.00012679,2]
[327271538,1715953845285,-500.0,0.00012679,2]
[327271540,1715953845295,-500.0,0.00012679,2]
[327271542,1715953845304,-925.6,0.00012679,2]
[327271544,1715953845313,-925.6,0.00012679,2]
[327271546,1715953845322,-925.6,0.00012679,2]
[327271548,1715953845331,-500.0,0.00012679,2]
[327271550,1715953845343,-500.0,0.00012679,2]
[327271552,1715953845352,-500.0,0.00012679,2]
[327271554,1715953845361,-500.0,0.00012679,2]
[327271556,1715953845370,-500.0,0.00012679,2]
[327271558,1715953845380,-500.0,0.00012679,2]
[327271560,1715953845389,-4070.69,0.00012679,2]
[327271562,1715953845398,-4070.69,0.00012679,2]
[327271564,1715953845407,-4070.69,0.00012679,2]
[327271566,1715953845416,-782301.06624014,0.0001268,2]
[327271568,1715953845425,-367.301771,0.0001268,2]
[327271570,1715953845435,-367.301771,0.0001268,2]
[327271572,1715953845444,-367.301771,0.0001268,2]
[327271574,1715953845454,-367.301771,0.0001268,2]
[327271576,1715953845463,-258.444635,0.0001268,2]
[327271578,1715953845473,-252.707903,0.0001268,2]
[327271580,1715953845482,-252.707903,0.0001268,2]
[327271582,1715953845492,-252.707903,0.0001268,2]
[327271584,1715953845502,-252.707903,0.0001268,2]
[327271586,1715953845511,-151.0,0.0001268,2]
[327271588,1715953845521,-151.0,0.0001268,2]
[327271589,1715953845530,-268.649522,0.0001268,2]
[327271591,1715953845540,-268.649522,0.0001268,2]
[327271593,1715953845549,-268.649522,0.0001268,2]
[327271595,1715953845559,-268.649522,0.0001268,2]
[327271597,1715953845568,-151.0,0.0001268,2]
[327271599,1715953845578,-151.0,0.0001268,2]
[327271601,1715953845589,-151.0,0.0001268,2]
[327271603,1715953845599,-151.0,0.0001268,2]
[327271605,1715953845614,-151.0,0.0001268,2]
[327271607,1715953845623,-278.93612,0.0001268,2]
[327271609,1715953845633,-1373.475077,0.000127,2]
[327271611,1715953845643,-200.0,0.000127,4]
[327271613,1715953845654,-1464.0,0.00012711,2]
[327271615,1715953845664,-591.396,0.00012711,2]
[327271617,1715953845674,-4895.0,0.00012724,2]
[327271619,1715953845684,-169.616618,0.00012726,2]
[327271621,1715953845695,-154.757108,0.00012726,2]
[327271623,1715953845705,-3000.0,0.0001273,2]
[327271625,1715953845714,-682.0,0.0001274,2]
[327271627,1715953845724,-8735.89126676,0.0001274,2]
[327271629,1715953845733,-500.0,0.0001275,2]
[327271631,1715953845742,-500.0,0.0001275,2]
[327271633,1715953845752,-500.0,0.0001275,2]
[327271635,1715953845762,-528.55,0.0001275,2]
[327271637,1715953845771,-3775.57,0.0001275,2]
[327271639,1715953845781,-695.72,0.0001275,2]
[327271642,1715953845792,-904.36,0.0001275,2]
[327271643,1715953845802,-576.86,0.0001275,2]
[327271646,1715953845811,-952.09,0.0001275,2]
[327271648,1715953845821,-674.19,0.0001275,2]
[327271650,1715953845830,-367.301771,0.00012751,2]
[327271652,1715953845842,-367.301766,0.00012751,2]
[327271653,1715953845851,-252.707903,0.00012751,2]
[327271656,1715953845861,-252.707895,0.00012751,2]
[327271658,1715953845871,-191.22905209,0.00012776,2]
[327271662,1715953845881,-858.507705,0.00012777,2]
[327271666,1715953845890,-5173.76119,0.00012777,2]
[327271668,1715953845900,-2183.639369,0.00012777,2]
[327271670,1715953845910,-683.56,0.00012778,2]
[327271672,1715953845919,-783.32,0.00012778,2]
[327271675,1715953845929,-500.0,0.00012778,2]
[327271677,1715953845938,-500.0,0.00012778,2]
[327271680,1715953845948,-500.0,0.00012778,2]
[327271682,1715953845958,-500.0,0.00012778,2]
[327271685,1715953845967,-941.53,0.00012778,2]
[327271688,1715953845976,-608.27,0.00012778,2]
[327271691,1715953845986,-1014.56,0.00012778,2]
[327271693,1715953845995,-2128.12,0.00012778,2]
[327271696,1715953846004,-672.8,0.00012778,2]
[327271698,1715953846014,-500.0,0.00012778,2]
[327271700,1715953846023,-1799.73,0.00012778,2]
[327271702,1715953846033,-2393.99,0.00012778,2]
[327271704,1715953846042,-925.6,0.00012778,2]
[327271706,1715953846051,-4070.69,0.00012778,2]
[327271708,1715953846061,-48818.08,0.00012779,2]
[327271710,1715953846071,-500.0,0.00012779,2]
[327271712,1715953846080,-500.0,0.00012779,2]
[327271714,1715953846092,-474.49516892,0.00012779,2]
[327271716,1715953846101,-500.0,0.00012779,2]
[327271718,1715953846110,-500.0,0.00012779,2]
[327271720,1715953846120,-500.0,0.00012779,2]
[327271722,1715953846129,-500.0,0.00012779,2]
[327271724,1715953846138,-2012.18,0.00012779,2]
[327271726,1715953846148,-500.0,0.00012779,2]
[327271728,1715953846159,-291.3,0.00012779,2]
[327271730,1715953846169,-528.55,0.00012779,2]
[327271732,1715953846178,-528.55,0.00012779,2]
[327271734,1715953846188,-528.55,0.00012779,2]
[327271736,1715953846197,-500.0,0.00012779,2]
[327271738,1715953846207,-3775.57,0.00012779,2]
[327271740,1715953846218,-3775.57,0.00012779,2]
[327271742,1715953846228,-3775.57,0.00012779,2]
[327271744,1715953846238,-695.72,0.00012779,2]
[327271746,1715953846247,-695.72,0.00012779,2]
[327271747,1715953846256,-695.72,0.00012779,2]
[327271748,1715953846266,-904.36,0.00012779,2]
[327271749,1715953846276,-904.36,0.00012779,2]
[327271750,1715953846286,-904.36,0.00012779,2]
[327271751,1715953846295,-500.0,0.00012779,2]
[327271753,1715953846304,-500.0,0.00012779,2]
[327271755,1715953846313,-411.41960592,0.00012779,2]
[327271757,1715953846323,-500.0,0.00012779,2]
[327271759,1715953846332,-500.0,0.00012779,2]
[327271761,1715953846342,-500.0,0.00012779,2]
[327271763,1715953846351,-173.06,0.00012779,2]
[327271765,1715953846361,-576.86,0.00012779,2]
[327271767,1715953846371,-576.86,0.00012779,2]
[327271769,1715953846380,-576.86,0.00012779,2]
[327271771,1715953846390,-952.09,0.00012779,2]
[327271773,1715953846400,-608.27,0.00012779,2]
[327271775,1715953846409,-608.27,0.00012779,2]
[327271777,1715953846418,-608.27,0.00012779,2]
[327271779,1715953846428,-608.27,0.00012779,2]
[327271780,1715953846437,-608.46,0.00012779,2]
[327271782,1715953846447,-2743.76,0.00012779,2]
[327271784,1715953846456,-1014.56,0.00012779,2]
[327271786,1715953846466,-1014.56,0.00012779,2]
[327271788,1715953846476,-1014.56,0.00012779,2]
[327271790,1715953846485,-1014.56,0.00012779,2]
[327271792,1715953846495,-1014.77458246,0.00012779,2]
[327271794,1715953846504,-2128.12,0.00012779,2]
[327271796,1715953846513,-2128.12,0.00012779,2]
[327271798,1715953846523,-2128.12,0.00012779,2]
[327271800,1715953846532,-2128.12,0.00012779,2]
[327271801,1715953846541,-2128.30698836,0.00012779,2]
[327271802,1715953846551,-672.8,0.00012779,2]
[327271803,1715953846560,-672.8,0.00012779,2]
[327271804,1715953846569,-672.8,0.00012779,2]
[327271805,1715953846626,-672.8,0.00012779,2]
[327271806,1715953846636,-672.99,0.00012779,2]
[327271807,1715953846648,-500.0,0.00012779,2]
[327271808,1715953846658,-1232.58,0.00012779,2]
[327271809,1715953846667,-500.0,0.00012779,2]
[327271810,1715953846677,-500.0,0.00012779,2]
[327271811,1715953846686,-1799.73,0.00012779,2]
[327271812,1715953846698,-500.0,0.00012779,2]
[327271813,1715953846708,-1799.73,0.00012779,2]
[327271814,1715953846717,-287.02616707,0.00012779,2]
[327271815,1715953846727,-1799.73,0.00012779,2]
[327271816,1715953846737,-1799.73,0.00012779,2]
[327271817,1715953846747,-1799.92,0.00012779,2]
[327271818,1715953846756,-674.19,0.00012779,2]
[327271819,1715953846766,-674.19,0.00012779,2]
[327271820,1715953846776,-674.19,0.00012779,2]
[327271821,1715953846786,-500.0,0.00012779,2]
[327271822,1715953846796,-925.6,0.00012779,2]
[327271823,1715953846805,-925.6,0.00012779,2]
[327271824,1715953846814,-925.6,0.00012779,2]
[327271825,1715953846823,-925.6,0.00012779,2]
[327271826,1715953846832,-925.75732631,0.00012779,2]
[327271827,1715953846844,-374.4,0.00012779,2]
[327271828,1715953846854,-4070.69,0.00012779,2]
[327271829,1715953846863,-4070.69,0.00012779,2]
[327271830,1715953846872,-4070.69,0.00012779,2]
[327271831,1715953846882,-4070.69,0.00012779,2]
[327271832,1715953846891,-4070.8102,0.00012779,2]
[327271833,1715953846900,-154905.4622,0.0001278,2]
[327271834,1715953846910,-151.0,0.0001278,2]
[327271835,1715953846919,-268.649522,0.0001278,2]
[327271836,1715953846929,-268.649522,0.0001278,2]
[327271837,1715953846938,-151.0,0.0001278,2]
[327271838,1715953846947,-151.0,0.0001278,2]
[327271839,1715953846957,-151.0,0.0001278,2]
[327271840,1715953846966,-151.0,0.0001278,2]
[327271841,1715953846975,-150.0,0.00012782,2]
[327271842,1715953846985,-1373.475077,0.000128,2]
[327271844,1715953846994,-347.954734,0.000128,2]
[327271846,1715953847003,-763.55604265,0.000128,2]
[327271848,1715953847014,-873.0,0.000128,4]
[327271850,1715953847023,-200.0,0.00012803,2]
[327271852,1715953847032,-497.35750037,0.00012824,2]
[327271854,1715953847042,-528.55,0.00012824,2]
[327271856,1715953847052,-3775.57,0.00012824,2]
[327271858,1715953847061,-695.72,0.00012824,2]
[327271860,1715953847071,-904.36,0.00012824,2]
[327271862,1715953847080,-576.86,0.00012824,2]
[327271864,1715953847091,-952.09,0.00012824,2]
[327271866,1715953847100,-674.19,0.00012824,2]
[327271868,1715953847110,-200.0,0.00012827,2]
[327271870,1715953847119,-1000.0,0.00012827,2]
[327271872,1715953847128,-500.0,0.00012827,2]
[327271874,1715953847137,-169.23,0.00012832,2]
[327271876,1715953847147,-175.05825601,0.0001285,2]
[327271878,1715953847156,-409.50018805,0.0001286,2]
[327271881,1715953847165,-548.73487624,0.0001286,2]
[327271883,1715953847174,-3000.0,0.0001286,2]
[327271884,1715953847184,-2000.0,0.0001286,2]
[327271887,1715953847194,-200.0,0.0001286,2]
[327271888,1715953847203,-2000.0,0.0001286,2]
[327271890,1715953847211,-200.0,0.0001286,2]
[327271892,1715953847220,-500.0,0.0001286,2]
[327271894,1715953847229,-500.0,0.0001286,2]
[327271896,1715953847239,-824.0,0.0001287,2]
[327271898,1715953847248,-682.0,0.0001287,2]
[327271900,1715953847258,-3710.831,0.00012885,2]
[327271902,1715953847268,-528.55,0.00012899,2]
[327271905,1715953847279,-3775.57,0.00012899,2]
[327271907,1715953847288,-695.72,0.00012899,2]
[327271909,1715953847298,-904.36,0.00012899,2]
[327271911,1715953847307,-683.56,0.00012899,2]
[327271913,1715953847317,-783.32,0.00012899,2]
[327271915,1715953847327,-500.0,0.00012899,2]
[327271917,1715953847338,-576.86,0.00012899,2]
[327271919,1715953847348,-952.09,0.00012899,2]
[327271921,1715953847358,-500.0,0.00012899,2]
[327271923,1715953847368,-941.53,0.00012899,2]
[327271925,1715953847378,-674.19,0.00012899,2]